[Event "Czech Youth Championship Open 2023"]
[Site "Teplice"]
[Date "2023.03.16"]
[Round "7.3"]
[White "Pycha, Patrik"]
[Black "Sadil, Antonin"]
[Result "1-0"]
[ECO "B12"]
[WhiteElo "2029"]
[BlackElo "1683"]
[Annotator "TA"]
[PlyCount "67"]
[EventDate "2023.03.09"]
[EventType "swiss"]
[EventCountry "CZE"]
[SourceTitle "playchess.com"]
[Source "ChessBase"]
[SourceQuality "1"]
[TimeControl "5400+30"]

{[%evp 11,67,6,13,1,18,17,23,16,41,47,148,88,90,38,42,44,76,23,56,65,66,41,43,50,149,36,93,95,79,85,243,187,381,358,372,320,290,218,236,162,258,212,173,96,421,320,321,321,840,846,1131,1131,1072,1053,1061,1035,7224,6335]} 1. e4 {[%emt 0:00:03]} c6 {[%emt 0:00:30]} 2. d4 {[%emt 0:00:05]} d5 {[%emt 0:00:22]} 3. e5 {[%emt 0:00:05]} Bf5 {[%emt 0:00:09]} 4. h4 {[%emt 0:00:06]} h5 {[%emt 0:01:08]} 5. Bd3 {[%emt 0:00:05]} Bxd3 {[%emt 0:00:19]} 6. Qxd3 {[%emt 0:00:07]} e6 {[%emt 0:00:17]} 7. Bg5 {[%emt 0:00:06] B12: Caro-Kann: Advance Variation.} Be7 {[%emt 0:02:12]} 8. Nf3 {[%emt 0:00:06]} Nd7 {[%emt 0:04:13]} 9. Nbd2 {[%emt 0:00:14] White has an edge.} Bxg5 {[%emt 0:01:13]} 10. hxg5 {[%emt 0:00:28] [#]} Qb6 $146 {[%emt 0:01:15] [#]} (10... Ne7 $14) ({Predecessor:} 10... Ne7 11. O-O-O Qa5 12. Kb1 O-O-O 13. Rh2 g6 14. Rdh1 Rhf8 15. Ne1 Qb6 16. c3 Kb8 {0-1 Langford,J (1846)-Winsley,N (1809) NZL-ch rapid op 130th 2023 (4)}) 11. g4 {[%emt 0:00:22]} (11. g6 $142 $1 {[%cal Rg6f7] And now gxf7+ would win.} f6 12. O-O-O) 11... Ne7 $16 {[%emt 0:03:54]} 12. gxh5 {[%emt 0:02:02]} (12. Rxh5 $16 Rxh5 13. gxh5) 12... Qxb2 $14 {[%emt 0:01:50]} 13. Rb1 {[%emt 0:00:48]} Qxa2 {[%emt 0:01:13] [#]} 14. Rxb7 {[%emt 0:02:16]} (14. Ke2 $1 $16 {Strongly threatening Ra1.} Qa4 15. Ra1 (15. Rxb7 c5 $11)) 14... Rb8 {[%emt 0:01:20]} 15. Rxb8+ {[%emt 0:00:28]} Nxb8 {[%emt 0:00:10]} 16. Ke2 {[%emt 0:00:36]} Nd7 {[%emt 0:04:00][%cal Oe7g6]} 17. Nb3 {[%emt 0:01:02] Black must now prevent Ra1.} Qa4 {[%emt 0:02:06]} (17... Qb2 $14) 18. h6 {[%emt 0:08:12]} ({Only move:} 18. Ra1 $16 Qc4 19. Qxc4 (19. Rxa7 Qxd3+ 20. cxd3 Nc8 $18) 19... dxc4 20. Nbd2) 18... Qb5 {[%emt 0:03:22]} (18... Ng6 $14 19. Kd2 (19. hxg7 Rxh1 20. g8=Q+ Ndf8 $11) 19... O-O) 19. Ra1 $16 {[%emt 0:10:42] White is more active.} (19. hxg7 $2 {perishes.} Rxh1 20. Qxb5 cxb5 $19) ({Reject} 19. h7 $6 Qxd3+ 20. Kxd3 Nf8 $11) 19... Qxd3+ {[%emt 0:01:48]} 20. Kxd3 {[%emt 0:00:08]} Nf5 {[%emt 0:01:05]} (20... gxh6 $16 {keeps fighting.} 21. Rxa7 Nb6) 21. Rxa7 $18 {[%emt 0:00:28]} Rh7 $2 {[%emt 0:04:28] [#]} (21... Nf8 22. Ra8+ Ke7 23. Ra7+ Ke8) 22. g6 $1 {[%emt 0:03:13][%mdl 512]} fxg6 {[%emt 0:01:03]} 23. Ng5 {[%emt 0:00:17]} Rxh6 {[%emt 0:01:10]} 24. Nxe6 {[%emt 0:00:08]} Rh3+ {[%emt 0:01:14]} 25. Kd2 {[%emt 0:01:48]} Rf3 {[%emt 0:02:43]} (25... Nb6 $142 26. Nxg7+ Nxg7) 26. Nc7+ {[%emt 0:09:20]} Ke7 {[%emt 0:02:25]} 27. Ke2 {[%emt 0:06:50]} (27. c3 $18 Rxf2+ 28. Ke1) 27... Rf4 $2 {[%emt 0:07:20][%mdl 8192]} (27... Rc3 $16 {is more resistant.}) 28. e6 {[%emt 0:06:34]} Re4+ {[%emt 0:01:31]} 29. Kd3 {[%emt 0:00:19]} Nf6 {[%emt 0:03:19]} (29... Rxe6 30. Nxe6 Kxe6) 30. Nxd5+ {[%emt 0:01:09] White is clearly winning.} Kf8 {[%emt 0:02:49]} 31. Nxf6 {[%emt 0:00:47][%csl Ge6][%cal Ra7f7]} Rxe6 {[%emt 0:00:54]} 32. Nd7+ {[%emt 0:00:19]} Kg8 {[%emt 0:00:58]} 33. Ra8+ {[%emt 0:00:28]} Kh7 {[%emt 0:00:13]} 34. Nf8+ {[%emt 0:00:05] Weighted Error Value: White=0.40/Black=0.71} 1-0

[Event "Czech Youth Championship Open 2023"]
[Site "Teplice"]
[Date "2023.03.16"]
[Round "7.4"]
[White "Pavlis, Matej"]
[Black "Pressler, Tobias"]
[Result "0-1"]
[ECO "A06"]
[WhiteElo "1868"]
[BlackElo "2096"]
[Annotator "TA"]
[PlyCount "86"]
[EventDate "2023.03.09"]
[EventType "swiss"]
[EventCountry "CZE"]
[SourceTitle "playchess.com"]
[Source "ChessBase"]
[SourceQuality "1"]
[TimeControl "5400+30"]

{[%evp 16,86,-46,-61,-46,-58,-51,-75,-56,-79,-47,-45,-36,-57,0,-4,-8,-45,-23,-31,0,0,0,-4,0,0,-7,0,-15,-42,-22,-137,-127,-136,-133,-124,-102,-105,-35,-40,0,0,-14,-97,0,-168,0,-384,-377,-382,-191,-634,-233,-625,-625,-611,-611,-604,-586,-657,-627,-819,-633,-5377,-2950,-12834,-12835,-12835,-12835,-12830,-5727,-29995,-1356]} 1. Nf3 {[%emt 0:00:02]} d5 {[%emt 0:00:04]} 2. b3 {[%emt 0:00:05]} Nf6 {[%emt 0:02:24]} 3. Bb2 {[%emt 0:00:08]} c5 {[%emt 0:00:45]} 4. g3 {[%emt 0:00:48]} Nc6 {[%emt 0:00:10]} 5. Bg2 {[%emt 0:00:06]} g6 {[%emt 0:01:07]} 6. O-O {[%emt 0:00:30]} Bg7 {[%emt 0:00:03]} 7. c4 {[%emt 0:00:57]} O-O {[%emt 0:00:49]} 8. d3 {[%emt 0:00:39]} d4 {[%emt 0:09:28]} 9. Nbd2 {[%emt 0:06:28]} Bf5 {[%emt 0:02:52] A05: Réti Opening: 1 Nf3 Nf6.} 10. Ng5 {[%emt 0:02:16]} Qd7 {[%emt 0:01:57]} 11. Nge4 {[%emt 0:00:26]} b6 {[%emt 0:00:14] Black is better.} 12. Re1 {[%emt 0:01:35] [#]} Rae8 $146 {[%emt 0:02:05]} ({Predecessor:} 12... Rac8 13. a3 h6 14. Nxf6+ Bxf6 15. Nf3 Bh3 16. Bh1 Bg7 17. Qd2 a5 18. e4 Bg4 {0-1 Toderita,D (1700)-Rendi,E (2129) ROM-ch sf U18 Girls 2002}) 13. Nxf6+ {[%emt 0:09:08]} exf6 {[%emt 0:04:18]} 14. Nf3 {[%emt 0:04:10]} Ne5 {[%emt 0:01:26]} ({Black should try} 14... a5 $15) 15. b4 $11 {[%emt 0:02:28]} Bh3 {[%emt 0:01:20]} (15... cxb4 16. Nxd4 Bh3 17. Bd5 $14) 16. Nxe5 {[%emt 0:03:37]} Rxe5 {[%emt 0:00:21]} 17. Bf3 {[%emt 0:01:21]} Rfe8 {[%emt 0:04:58]} (17... cxb4 {looks sharper.} 18. a3 b3 19. a4 Rfe8) 18. bxc5 {[%emt 0:00:37]} bxc5 {[%emt 0:00:10]} 19. Rb1 {[%emt 0:03:38]} Bh6 {[%emt 0:06:39]} 20. Bc1 {[%emt 0:10:51]} Bxc1 {[%emt 0:00:55]} 21. Qxc1 {[%emt 0:00:09]} Kg7 {[%emt 0:10:58]} 22. Qa3 {[%emt 0:07:07]} h5 {[%emt 0:06:57]} 23. Qa6 {[%emt 0:04:01]} (23. Be4 $11) 23... Qf5 $17 {[%emt 0:23:40][%cal Of5f3]} 24. Be4 {[%emt 0:03:27]} Rxe4 {[%emt 0:00:59]} 25. dxe4 {[%emt 0:00:15]} Rxe4 {[%emt 0:00:03]} 26. Qb7 {[%emt 0:06:08]} (26. Qxa7 Rxe2) 26... h4 {[%emt 0:04:57]} (26... Re5 $1 $17 {[%cal Oh5h4]} 27. Rb2 (27. Qxa7 Rxe2) 27... Qe6) 27. Rb3 $1 $15 {[%emt 0:08:47]} (27. Qxa7 Rxe2) 27... g5 {[%emt 0:03:55][%mdl 1024] Black has compensation.} (27... Qe6 $5 {[%cal Re4e2]} 28. Rb2 d3 $15) 28. Qd5 {[%emt 0:01:11]} (28. Qxa7 Qe6 29. Qb6 (29. Qxc5 Rxe2) 29... Qxc4 $17) 28... Re5 {[%emt 0:00:49]} 29. Qf3 {[%emt 0:00:44]} (29. Qd8 $1 $11 {remains equal.}) 29... Qe6 $40 {[%emt 0:00:43][%mdl 128] Black mounts an attack. Black is more active.} (29... Qxf3 $17 30. Rxf3 Bg4) 30. Rb2 $2 {[%emt 0:13:27]} (30. Rb8 $11 Bf5 31. Qa8 (31. Qh5 $2 Bh7 $19)) 30... Bg4 $2 {[%emt 0:05:01]} ({Black should play} 30... Bf5 $19 {...Be4 is the strong threat.} 31. Rf1 Be4) 31. Qd3 {[%emt 0:00:14][%mdl 8192]} (31. Qa8 $1 $11 {and White has nothing to worry.}) 31... Bf5 $19 {[%emt 0:01:24]} 32. Qb3 {[%emt 0:00:13] [#]} d3 $1 {[%emt 0:00:07][%mdl 512]} 33. e3 $2 {[%emt 0:00:31]} (33. Qd1) (33. Qc3 dxe2) 33... h3 $2 {[%emt 0:01:01]} (33... hxg3 34. a4 (34. hxg3 $2 {loses.} Be4 $19) 34... gxh2+ 35. Kxh2 Re4) 34. Rd2 $2 {[%emt 0:03:38]} (34. a3) 34... Qc6 {[%emt 0:00:09][%csl Gh3][%cal Rc6g2] White is weak on the light squares} 35. f4 {[%emt 0:02:01] [#]} gxf4 {[%emt 0:00:25]} 36. gxf4 {[%emt 0:00:05]} Re6 {[%emt 0:01:16][%cal Be5e6,Be6e8,Be8g8,Bg8g2][%mdl 32]} 37. Qd1 {[%emt 0:00:36]} Kh6 {[%emt 0:01:21] Inhibits Qh5+.} 38. Rf2 {[%emt 0:00:33]} Re8 {[%emt 0:00:42]} 39. Qf3 {[%emt 0:03:00]} Rg8+ {[%emt 0:00:06]} 40. Kf1 {[%emt 0:00:07]} Qxf3 {[%emt 0:00:11][%mdl 64] Deflection} 41. Rxf3 {[%emt 0:00:06]} d2 {[%emt 0:00:02]} 42. Ke2 {[%emt 0:04:48]} Rg2+ {[%emt 0:00:18]} 43. Kd1 {[%emt 0:00:13]} Bc2+ {[%emt 0:00:05][%mdl 64] Promotion.   Weighted Error Value: White=1.10/Black=0.40} 0-1

[Event "Czech Youth Championship Open 2023"]
[Site "Teplice"]
[Date "2023.03.16"]
[Round "7.5"]
[White "Hlavac, Rudolf"]
[Black "Juracak, David"]
[Result "0-1"]
[ECO "C42"]
[WhiteElo "1985"]
[BlackElo "1820"]
[Annotator "TA"]
[PlyCount "62"]
[EventDate "2023.03.09"]
[EventType "swiss"]
[EventCountry "CZE"]
[SourceTitle "playchess.com"]
[Source "ChessBase"]
[SourceQuality "1"]
[TimeControl "5400+30"]

{[%evp 15,62,20,48,37,59,18,12,9,14,8,14,13,16,8,14,10,270,273,270,248,260,0,0,0,239,254,238,243,380,138,583,576,588,560,572,582,576,537,581,590,572,582,619,622,622,561,539,-337,-275]} 1. e4 {[%emt 0:15:50]} e5 {[%emt 0:00:07]} 2. Nf3 {[%emt 0:00:16]} Nf6 {[%emt 0:00:05]} 3. Nxe5 {[%emt 0:00:17]} d6 {[%emt 0:00:08]} 4. Nf3 {[%emt 0:00:10]} Nxe4 {[%emt 0:00:06]} 5. d4 {[%emt 0:00:09]} d5 {[%emt 0:00:05]} 6. Bd3 {[%emt 0:00:09]} Nc6 {[%emt 0:00:15]} 7. O-O {[%emt 0:00:29]} Be7 {[%emt 0:00:05]} 8. Re1 {[%emt 0:00:51]} Nf6 {[%emt 0:02:08]} 9. h3 {[%emt 0:01:53] C42: Petroff Defence: 3 Nxe5 and unusual White 3rd moves.} O-O {[%emt 0:00:10]} 10. Bf4 {[%emt 0:01:34]} Nb4 {[%emt 0:03:16]} 11. Bf1 {[%emt 0:00:41] The position is equal.} Bf5 {[%emt 0:00:21]} 12. Na3 {[%emt 0:00:37]} c5 {[%emt 0:07:27] [#]} 13. dxc5 $146 {[%emt 0:02:08]} ({Predecessor:} 13. c3 Nc6 14. Qb3 Na5 15. Qa4 Ne4 16. Nb5 Nc6 17. dxc5 Bxc5 18. Be3 Qf6 19. Nbd4 {½-½ Ricardi,P (2545)-Sulypa,O (2415) Ubeda op 4th 1999 (5)}) 13... Bxc5 {[%emt 0:00:11]} 14. c3 {[%emt 0:00:22]} Nc6 {[%emt 0:00:36][%cal Oc5f2]} 15. Nb5 $36 {[%emt 0:04:32][%mdl 2048] White is more active.} Qb6 $2 {[%emt 0:01:40][%mdl 8192] [#]} (15... Rc8 $11) 16. Bc7 $1 $18 {[%emt 0:03:38]} Bxf2+ {[%emt 0:02:42]} 17. Kh1 {[%emt 0:00:26]} Qc5 {[%emt 0:01:47]} 18. Bd6 {[%emt 0:04:13]} Qb6 {[%emt 0:00:30]} 19. Bc7 $1 {[%emt 0:02:30]} Qc5 {[%emt 0:01:18]} 20. b4 {[%emt 0:18:31]} Nxb4 {[%emt 0:00:11]} 21. cxb4 {[%emt 0:00:19]} (21. Bd6 $6 Qb6 $16) 21... Qxb4 {[%emt 0:02:02]} (21... Qc6 {was worth a try.} 22. Rc1 Qd7) 22. Re5 $2 {[%emt 0:01:35] [#]} (22. a3 $18 Qb2 23. Be5) 22... Bd7 $2 {[%emt 0:01:48][%mdl 8192]} (22... Be4 $16) 23. a3 {[%emt 0:03:08]} ({Not} 23. Bd6 Qa5 $18) 23... Qf4 {[%emt 0:07:25]} 24. Re2 {[%emt 0:04:23][%csl LRf2,LRf4]} Qh6 {[%emt 0:00:05]} 25. Rxf2 {[%emt 0:00:28]} Ne4 {[%emt 0:00:36]} 26. Rb2 {[%emt 0:01:25]} Rac8 {[%emt 0:01:15]} 27. Bh2 {[%emt 0:03:04]} Bxb5 {[%emt 0:04:36]} 28. Bxb5 {[%emt 0:00:47]} Rc5 {[%emt 0:00:19]} 29. Bd3 {[%emt 0:02:00]} Rfc8 {[%emt 0:00:41]} 30. Bf1 {[%emt 0:06:59]} (30. Rxb7 $2 {loses.} Nf2+ 31. Kg1 Nxd1 32. Rxd1 Rc1 33. Rxc1 Qxc1+ 34. Bf1 Qxa3 $19) 30... b6 {[%emt 0:04:26]} 31. Rbb1 $4 {[%mdl 8192]} (31. Ba6 $18 {avoids the disaster.} Qc1 32. Re2 (32. Bxc8 Qxb2 33. Be5 Nf2+ 34. Kh2 Nxd1 $16) 32... Qxd1+ 33. Rxd1) 31... Nf2+ {Weighted Error Value: White=0.53/Black=0.58} 0-1